bitfinex/quotes_ETHUSD_20230116
["timestamp","ask_amount","ask_price","bid_price","bid_amount"]
[1673851940046,64.92549358,1572.8,1572.7,0.94688496]
[1673851941852,66.31223743,1572.8,1572.7,0.94688496]
[1673851942106,59.62823743,1572.8,1572.7,0.94688496]
[1673851942316,63.47649358,1572.8,1572.7,0.94688496]
[1673851942697,56.79249358,1572.8,1572.7,0.94439445]
[1673851944902,66.31223743,1572.8,1572.7,0.94439445]
[1673851945451,67.74923743,1572.8,1572.7,0.94439445]
[1673851947778,64.91349358,1572.8,1572.7,0.94439445]
[1673851948744,67.74923743,1572.8,1572.7,0.94439445]
[1673851949054,68.87890963,1572.8,1572.7,0.94439445]
[1673851949366,35.39234678,1572.6,1572.5,0.12088638]
[1673851949527,61.41158146,1572.6,1572.5,0.12088638]
[1673851949739,57.0876911,1572.6,1572.5,0.12088638]
[1673851950158,33.99178642,1572.6,1572.5,1.42488638]
[1673851950424,33.04765448,1572.6,1572.5,1.42488638]
[1673851950598,39.40654448,1572.6,1572.5,0.12088638]
[1673851951577,47.65365103,1572.6,1572.5,0.12088638]
[1673851951768,47.88381497,1572.6,1572.5,0.12088638]
[1673851951948,53.40946633,1572.6,1572.5,0.12088638]
[1673851952504,59.4701971,1572.6,1572.5,0.12088638]
[1673851952731,68.07578374,1572.6,1572.5,0.12088638]
[1673851952938,73.07578374,1572.6,1572.5,0.12088638]
[1673851953668,12.17084181,1572.5,1572.3,0.10780306]
[1673851953831,53.30097536,1572.4,1572.3,0.10780306]
[1673851954286,62.07531454,1572.4,1572.3,0.10780306]
[1673851954515,62.07531454,1572.4,1572.3,0.09702276]
[1673851954899,67.07531454,1572.4,1572.3,0.09702276]
[1673851955116,72.6009659,1572.4,1572.3,0.09702276]
[1673851955552,71.1569659,1572.4,1572.3,0.09702276]
[1673851955763,76.07784362,1572.4,1572.3,0.09702276]
[1673851955983,79.06971455,1572.4,1572.3,0.09702276]
[1673851956150,76.07784362,1572.4,1572.3,0.09702276]
[1673851956372,76.07781695,1572.4,1572.3,0.09702276]
[1673851957018,75.43147777,1572.4,1572.3,0.09702276]
[1673851957476,72.60023814,1572.4,1572.3,0.09702276]
[1673851957622,73.24657732,1572.4,1572.3,0.09702276]
[1673851957988,79.06824854,1572.4,1572.3,0.09702276]
[1673851958205,79.55779509,1572.4,1572.3,0.09702276]
[1673851958361,79.55779509,1572.4,1571.9,0.12844998]
[1673851958362,6.684,1572.2,1571.9,0.12844998]
[1673851958566,27.63185446,1572.0,1571.9,0.12844998]
[1673851958880,39.16905836,1572.0,1571.9,0.12844998]
[1673851959545,40.58449016,1572.0,1571.9,0.12844998]
[1673851959772,39.64085858,1572.0,1571.9,0.12844998]
[1673851960001,39.16865478,1572.0,1571.9,0.12844998]
[1673851960188,45.40252839,1572.0,1571.9,0.12844998]
[1673851960404,44.45930039,1572.0,1571.9,0.12844998]
[1673851961486,43.98772415,1572.0,1571.9,0.12844998]
[1673851961697,39.16928234,1572.0,1571.9,0.12844998]
[1673851962835,42.64085858,1572.0,1571.9,0.12844998]
[1673851963043,43.58443991,1572.0,1571.9,0.10844998]
[1673851963241,48.53032811,1572.0,1571.9,0.10844998]
[1673851963447,54.94575991,1572.0,1571.9,0.10844998]
[1673851963660,61.26515114,1572.0,1571.9,0.10844998]
[1673851964104,60.96790899,1572.0,1571.9,0.10844998]
[1673851966132,61.26543334,1572.0,1571.9,0.10844998]
[1673851966848,37.57797031,1572.0,1571.9,1.55744998]
[1673851967062,17.27278678,1572.0,1571.9,1.55744998]
[1673851967379,18.21665031,1572.0,1571.9,0.10844998]
[1673851967594,18.21665031,1572.0,1571.7,0.1360021]
[1673851967595,38.89032836,1572.0,1571.7,0.1360021]
[1673851967910,45.77471392,1571.8,1571.7,0.1360021]
[1673851968067,52.23956817,1571.8,1571.7,0.1360021]
[1673851968271,52.88590735,1571.8,1571.7,0.1360021]
[1673851968480,51.47037021,1571.8,1571.7,0.1360021]
[1673851968755,50.99851096,1571.8,1571.7,0.1360021]
[1673851968902,51.70037021,1571.8,1571.7,0.1360021]
[1673851969247,56.70037021,1571.8,1571.7,0.1360021]
[1673851969461,60.37204035,1571.8,1571.7,0.1360021]
[1673851969646,63.37204035,1571.8,1571.7,0.1360021]
[1673851969862,65.26025842,1571.8,1571.7,0.1360021]
[1673851970072,64.31667033,1571.8,1571.7,0.1360021]
[1673851970405,62.90120542,1571.8,1571.7,0.1360021]
[1673851970582,64.31672881,1571.8,1571.7,0.1360021]
[1673851970949,61.78217156,1571.8,1571.7,0.1360021]
[1673851971486,63.67038963,1571.8,1571.7,0.1360021]
[1673851971630,63.67052381,1571.8,1571.7,0.1360021]
[1673851971841,63.67035045,1571.8,1571.7,0.1360021]
[1673851972270,62.90120542,1571.8,1571.7,0.1360021]
[1673851973844,62.25486624,1571.8,1571.7,0.1360021]
[1673851974096,62.90120542,1571.8,1571.7,0.1360021]
[1673851975257,62.72621152,1571.8,1571.7,0.1360021]
[1673851975831,61.31049036,1571.8,1571.7,0.1360021]
[1673851976042,61.78236933,1571.8,1571.7,0.1360021]
[1673851976461,62.72601407,1571.8,1571.7,0.1360021]
[1673851976938,53.31029291,1571.8,1571.7,0.1360021]
[1673851977515,61.31029291,1571.8,1571.7,0.1360021]
[1673851977888,25.47278678,1571.8,1571.7,1.5850021]
[1673851978827,20.47278678,1571.8,1571.7,1.5850021]
[1673851979786,20.70278678,1571.8,1571.7,1.5850021]
[1673851980684,20.47278678,1571.8,1571.7,9.3965321]
[1673851980929,20.47278678,1571.8,1571.7,0.1360021]
[1673851981718,26.83491678,1571.8,1571.7,0.1360021]
[1673851982159,27.06491678,1571.8,1571.7,0.1360021]
[1673851982379,20.70278678,1571.8,1571.7,1.5850021]
[1673851983188,20.70278678,1571.8,1571.7,3.0340021]
[1673851983399,20.47278678,1571.8,1571.7,3.0340021]
[1673851984099,20.47278678,1571.8,1571.7,4.66032231]
[1673851984577,20.47278678,1571.8,1571.7,7.16032231]
[1673851984997,20.47278678,1571.8,1571.7,13.52285231]
[1673851985224,17.2,1571.8,1571.7,13.52285231]
[1673851985452,17.2,1571.8,1571.7,4.66032231]
[1673851985662,17.2,1571.8,1571.7,3.0340021]
[1673851986202,2.25259712,1571.8,1571.7,17.2080621]
[1673851986633,0.56845293,1571.8,1571.7,17.2080621]
[1673851986783,0.56845293,1571.8,1571.7,19.7080621]
[1673851987159,0.56845293,1571.8,1571.7,24.27431431]
[1673851988305,0.00045293,1571.8,1571.7,25.71931431]
[1673851988617,14.0048254,1572.2,1571.9,25.44664]
[1673851988831,0.0048254,1572.2,1572.1,20.52073]
[1673851989193,0.0048254,1572.2,1572.1,1.438]
[1673851989779,14.0048254,1572.2,1572.1,1.438]
[1673851990515,14.0048254,1572.2,1572.1,2.94651]
[1673851990883,0.0048254,1572.2,1572.1,2.94651]
[1673851991196,0.0048254,1572.2,1572.1,15.66833]
[1673851991529,0.0048254,1572.2,1572.1,17.11733]
[1673851991734,0.0048254,1572.2,1572.1,19.61733]
[1673851992764,0.0048254,1572.2,1572.1,18.17933]
[1673851995083,0.0048254,1572.2,1572.1,11.81842]
[1673851995298,17.27761218,1572.2,1572.1,1.449]
[1673851995554,17.27761218,1572.2,1572.0,15.0961]
[1673851998353,17.27761218,1572.2,1572.1,1.444]
[1673852002331,14.0048254,1572.2,1572.1,10.30491]
[1673852002623,14.0048254,1572.2,1572.1,13.336215]
[1673852003176,14.0048254,1572.2,1572.1,7.80491]
[1673852004469,14.0048254,1572.2,1572.1,1.444]
[1673852008658,14.0048254,1572.2,1572.1,1.431407]
[1673852009277,14.0048254,1572.2,1572.1,1.428226]
[1673852010344,17.50761218,1572.2,1572.1,1.428226]
[1673852010554,20.2143914,1572.2,1572.0,15.0881]
[1673852010817,3.50278678,1572.1,1572.0,15.0881]
[1673852012671,3.50278678,1572.1,1572.0,18.0881]
[1673852013991,3.50278678,1572.1,1572.0,15.0881]
[1673852014127,3.50278678,1572.1,1572.0,18.0881]
[1673852014550,3.50278678,1572.1,1572.0,18.0381]
[1673852014969,3.50278678,1572.1,1572.0,24.39942]
[1673852015177,14.0048254,1572.2,1572.0,24.39942]
[1673852015178,0.0048254,1572.2,1572.0,41.639162]
[1673852015388,0.0048254,1572.2,1572.1,27.47473]
[1673852015724,0.0048254,1572.2,1572.1,26.03173]
[1673852017704,1e-08,1572.2,1572.1,27.47773]
[1673852017927,1e-08,1572.2,1572.1,32.6728292]
[1673852019911,1e-08,1572.2,1572.1,36.61870269]
[1673852020767,1e-08,1572.2,1572.1,37.56911176]
[1673852020976,1e-08,1572.2,1572.1,37.40967781]
[1673852021417,3.2,1572.3,1572.2,20.53252999]
[1673852021606,3.2,1572.3,1572.2,33.32222689]
[1673852022220,3.2,1572.3,1572.2,38.01392948]
[1673852022691,3.2,1572.3,1572.2,32.37190584]
[1673852023912,3.2,1572.3,1572.2,30.004699]
[1673852024128,3.2,1572.3,1572.2,33.95035406]
[1673852024366,3.2,1572.3,1572.2,30.79394016]
[1673852024590,3.2,1572.3,1572.2,31.74445022]
[1673852024742,3.2,1572.3,1572.2,34.06672694]
[1673852024956,3.2,1572.3,1572.2,35.01721893]
[1673852025415,3.2,1572.3,1572.2,36.43613474]
[1673852025626,3.2,1572.3,1572.2,35.48564275]
[1673852026301,2.25314966,1572.3,1572.2,35.48564275]
[1673852027619,2.25314966,1572.3,1572.2,33.16301179]
[1673852027828,2.25314966,1572.3,1572.2,30.79394016]
[1673852028301,2.25314966,1572.3,1572.2,31.74409598]
[1673852029735,2.25314966,1572.3,1572.2,30.29809598]
[1673852031122,2.25314966,1572.3,1572.2,26.97856076]
[1673852032661,2.26071326,1572.3,1572.2,26.97856076]
[1673852034129,0.0075636,1572.3,1572.2,26.97856076]
[1673852037719,0.05803,1572.5,1572.3,2.5]
[1673852038044,0.05803,1572.5,1572.4,6.3597]
[1673852038230,0.28803,1572.5,1572.4,9.3597]
[1673852038878,0.28803,1572.5,1572.4,15.7194]
[1673852040761,0.28803,1572.5,1572.4,23.5281]
[1673852040972,0.28803,1572.5,1572.4,28.09435221]
[1673852042165,0.28803,1572.5,1572.4,21.73465221]
[1673852042375,0.28803,1572.5,1572.4,17.1684]
[1673852042595,0.05803,1572.5,1572.4,17.1684]
[1673852043302,2.25803,1572.5,1572.4,15.7194]
[1673852043513,2.25803,1572.5,1572.4,23.5281]
[1673852043915,2.25803,1572.5,1572.4,25.9781]
[1673852044124,2.25803,1572.5,1572.4,30.720941]
[1673852045553,2.25803,1572.5,1572.4,32.29894049]
[1673852045743,1.48830825,1572.8,1572.4,35.57172727]
[1673852045962,1.48830825,1572.8,1572.7,1.446]
[1673852046131,1.48830825,1572.8,1572.7,26.87996]
[1673852046338,1.48830825,1572.8,1572.7,32.77947321]
[1673852046915,1.48830825,1572.8,1572.7,34.22547321]
[1673852047439,1.48830825,1572.8,1572.7,37.49825999]
[1673852047807,1.48830825,1572.8,1572.7,34.22547321]
[1673852048775,1.49587185,1572.8,1572.7,34.22547321]
[1673852050278,3.3111873,1572.9,1572.7,39.07591734]
[1673852050468,3.3111873,1572.9,1572.8,9.80559173]
[1673852050688,3.3111873,1572.9,1572.8,28.87983173]
[1673852051508,3.3111873,1572.9,1572.8,30.45743001]
[1673852051849,3.3111873,1572.9,1572.8,28.87983173]
[1673852052069,3.3111873,1572.9,1572.8,32.15261851]
[1673852052220,3.3111873,1572.9,1572.8,36.09647691]
[1673852052431,3.3111873,1572.9,1572.8,37.04546222]
[1673852052652,4.328152,1573.0,1572.9,3.28653093]
[1673852052868,0.0695063,1573.0,1572.9,16.53476114]
[1673852053106,0.0695063,1573.0,1572.9,31.61625394]
[1673852053643,0.0695063,1573.0,1572.9,32.56519603]
[1673852053839,0.07727582,1573.1,1573.0,5.7565196]
[1673852054193,0.07727582,1573.1,1573.0,27.76720506]
[1673852054375,0.07727582,1573.1,1573.0,26.18984638]
[1673852057706,1e-08,1573.1,1573.0,26.18984638]
[1673852057935,1e-08,1573.1,1573.0,32.54711638]
[1673852059506,1e-08,1573.1,1573.0,29.2743296]
[1673852061680,1e-08,1573.1,1573.0,22.07181]
[1673852061927,1e-08,1573.1,1573.0,9.35727]
[1673852062152,1e-08,1573.1,1573.0,6.35727]
[1673852062663,1e-08,1573.1,1572.9,6.35768]
[1673852063108,1e-08,1573.1,1572.8,6.35792]
[1673852063316,4.71878679,1573.1,1572.7,6.3583]
[1673852063657,3.97466546,1573.0,1572.6,12.71716]
[1673852066346,3.50278678,1573.0,1572.7,3.0]
[1673852066549,3.50278678,1573.0,1572.8,6.35808]
[1673852068583,0.23,1573.0,1572.8,6.35808]
[1673852068815,15.44600001,1573.1,1572.8,19.07424]
[1673852068816,14.00000001,1573.1,1572.8,19.07424]
[1673852068971,17.27278679,1573.1,1572.8,19.07424]
[1673852069182,3.27278678,1573.0,1572.8,6.35808]
[1673852070167,17.27278678,1572.9,1572.6,6.35877]
[1673852070375,18.71378678,1572.9,1572.6,6.35877]
[1673852070710,3.27278678,1572.8,1572.6,6.35877]
[1673852071022,1.67,1572.7,1572.6,6.35877]
[1673852071228,0.23,1572.7,1572.6,6.35877]
[1673852071387,0.23,1572.7,1572.6,22.07655]
[1673852071606,0.23,1572.8,1572.6,27.420115]
[1673852072365,0.23,1572.8,1572.6,24.920115]
[1673852072577,0.23,1572.8,1572.6,22.07655]
[1673852073940,14.0,1572.9,1572.6,22.07655]
[1673852075229,17.27278678,1572.9,1572.6,9.35877]
[1673852075376,14.0,1572.7,1572.6,6.35877]
[1673852075585,14.23,1572.7,1572.6,6.35877]
[1673852076057,14.23,1572.7,1572.5,7.3591]
[1673852076058,17.50278678,1572.7,1572.5,1.0]
[1673852076373,1.67,1572.6,1572.5,1.0]
[1673852081629,0.23,1572.6,1572.5,1.0]
[1673852082514,1.67,1572.6,1572.5,1.0]
[1673852083918,0.23,1572.6,1572.5,1.0]
[1673852084302,1.67,1572.6,1572.5,7.3593]
[1673852084984,0.23,1572.6,1572.5,7.3593]
[1673852086138,4.94278678,1572.6,1572.5,1.0]
[1673852086351,3.89155736,1572.6,1572.5,1.0]
[1673852087634,7.16434414,1572.6,1572.5,1.0]
[1673852089132,14.96223414,1572.6,1572.5,1.0]
[1673852089924,21.32112414,1572.6,1572.5,1.0]
[1673852091184,21.32112414,1572.6,1572.5,0.99755847]
[1673852091883,32.43540643,1572.6,1572.5,0.99755847]
[1673852092184,30.54606314,1572.6,1572.5,0.99755847]
[1673852092410,31.48999681,1572.6,1572.5,0.99755847]
[1673852092718,29.12901414,1572.6,1572.5,0.99755847]
[1673852092898,31.66312954,1572.6,1572.5,0.99755847]
[1673852093074,32.43265379,1572.6,1572.5,0.99755847]
[1673852093537,30.54487757,1572.6,1572.5,0.99755847]
[1673852093751,32.43265379,1572.6,1572.5,0.99755847]
[1673852094010,30.54487757,1572.6,1572.5,0.99755847]
[1673852094649,36.77543896,1572.6,1572.5,0.99755847]
[1673852094861,43.68544466,1572.6,1572.5,0.89780263]
[1673852095299,46.6846517,1572.6,1572.5,0.89780263]
[1673852095539,41.57234228,1572.6,1572.5,0.89780263]
[1673852096078,39.21335332,1572.6,1572.5,0.89780263]
[1673852096807,45.89735332,1572.6,1572.5,0.89780263]
[1673852096985,51.00966274,1572.6,1572.5,0.89780263]
[1673852097172,54.00966274,1572.6,1572.5,0.89780263]
[1673852097911,51.2556098,1572.6,1572.5,0.89780263]
[1673852098277,56.36791922,1572.6,1572.5,0.74780263]
[1673852098445,56.36791507,1572.6,1572.5,0.74780263]
[1673852098799,3.27278678,1572.0,1571.9,1.89817985]
[1673852099011,37.79174678,1572.0,1571.9,1.89817985]
[1673852100558,38.02174678,1572.0,1571.9,1.89817985]
[1673852104349,18.93778678,1572.0,1571.9,1.89817985]
[1673852104832,17.50278678,1572.0,1571.9,1.89817985]
[1673852105668,17.27278678,1572.0,1571.9,1.89817985]
[1673852106252,14.0,1572.0,1571.9,3.43091667]
[1673852106453,14.0,1572.0,1571.9,22.51607667]
[1673852106660,14.0,1572.0,1571.9,25.01607667]
[1673852107137,14.0,1572.2,1571.9,25.01607667]
[1673852107300,14.0,1572.2,1571.9,31.85337667]
[1673852107301,17.27278678,1572.2,1571.9,31.85337667]
[1673852107512,17.27278678,1572.2,1572.0,9.54640767]
[1673852108237,0.23,1572.1,1572.0,15.90772767]
[1673852109017,0.23,1572.1,1572.0,9.54640767]
[1673852109186,0.23,1572.1,1572.0,6.36107]
[1673852112075,1.67,1572.1,1572.0,6.36107]
[1673852112292,0.23,1572.1,1572.0,6.36107]
[1673852112817,0.23,1572.1,1572.0,12.72239]
[1673852113030,17.27278678,1572.2,1572.1,2.5]
[1673852113248,17.27278678,1572.2,1572.0,12.72239]
[1673852113556,17.27278678,1572.2,1572.0,18.40758467]
[1673852114345,17.27278678,1572.2,1572.0,15.90758467]
[1673852114562,17.27278678,1572.2,1572.0,15.90999859]
[1673852115081,0.23,1572.1,1572.0,15.90999859]
[1673852116443,1.67,1572.1,1572.0,6.36107]
[1673852116714,4.94278678,1572.1,1571.9,17.59681985]
[1673852116882,4.94278678,1572.1,1571.9,8.25951985]
[1673852117298,3.50278678,1572.1,1571.9,8.25951985]
[1673852119961,14.0,1572.0,1571.9,8.25951985]
[1673852120176,14.23,1572.0,1571.9,8.25951985]
[1673852126376,15.17629966,1572.0,1571.9,8.25951985]
[1673852126753,14.23,1572.0,1571.9,8.25951985]
[1673852127962,15.17759675,1572.0,1571.9,8.25951985]
[1673852130123,14.23,1572.0,1571.9,8.25951985]
[1673852130952,15.17759675,1572.0,1571.9,8.25951985]
[1673852131195,14.23,1572.0,1571.9,8.25951985]
[1673852131410,18.92477761,1572.0,1571.9,1.89817985]
[1673852131584,21.0058803,1572.0,1571.9,1.89817985]
[1673852131931,19.3890361,1572.0,1571.9,1.89817985]
[1673852133531,19.96716241,1572.0,1571.9,1.89817985]
[1673852134787,19.96716241,1572.0,1571.9,1.89554399]
[1673852135263,21.39013247,1572.0,1571.9,1.89554399]
[1673852135477,19.96716241,1572.0,1571.9,1.89554399]
[1673852135888,22.33887293,1572.0,1571.9,1.89554399]
[1673852136100,25.20885422,1572.0,1571.9,1.89554399]
[1673852137406,25.21990219,1572.0,1571.9,1.89554399]
[1673852137574,29.6839249,1572.0,1571.9,1.89554399]
[1673852138354,31.58117923,1572.0,1571.9,1.89554399]
[1673852138562,29.6839249,1572.0,1571.9,1.89554399]
[1673852139197,36.0452449,1572.0,1571.9,1.89554399]
[1673852140771,36.04562347,1572.0,1571.9,1.89554399]
[1673852140945,36.51935918,1572.0,1571.9,1.89554399]
[1673852141394,37.96635918,1572.0,1571.9,1.89554399]
[1673852141570,35.12053438,1572.0,1571.9,1.89554399]
[1673852142892,37.49148869,1572.0,1571.9,1.89554399]
[1673852144461,35.12053438,1572.0,1571.9,1.89554399]
[1673852144673,41.48185438,1572.0,1571.9,1.89554399]
[1673852145389,41.48185438,1572.0,1571.9,1.44554399]
[1673852145390,42.40511301,1572.0,1571.9,1.44554399]
[1673852145990,40.03485438,1572.0,1571.9,1.44554399]
[1673852147609,27.31221438,1572.0,1571.9,1.44554399]
[1673852147825,24.44223309,1572.0,1571.9,1.44554399]
[1673852148216,26.33800206,1572.0,1571.9,1.44554399]
[1673852149497,19.97668206,1572.0,1571.9,1.44554399]
[1673852150639,18.08091309,1572.0,1571.9,1.44554399]
[1673852151463,15.52614522,1572.0,1571.9,7.80726399]
[1673852151674,15.52614522,1572.0,1571.9,25.15434622]
[1673852152313,14.57812631,1572.0,1571.9,25.15434622]
[1673852154032,14.80812631,1572.0,1571.9,25.15434622]
[1673852155152,0.80812631,1572.0,1571.9,25.15434622]
[1673852155778,0.80812631,1572.0,1571.9,22.65434622]
[1673852155980,14.80812631,1572.0,1571.9,22.65434622]
[1673852157667,18.08091309,1572.0,1571.9,20.53070399]
[1673852157881,19.02901222,1572.0,1571.9,7.80726399]
[1673852158893,18.08091309,1572.0,1571.9,7.80726399]
[1673852159242,19.02898249,1572.0,1571.9,7.80726399]
[1673852159453,18.08091309,1572.0,1571.9,7.80726399]
[1673852160857,14.80812631,1572.0,1571.9,7.80726399]
[1673852161125,14.80812631,1572.0,1571.9,22.65434922]
[1673852161274,2.37007483,1572.2,1571.9,22.65434922]
[1673852161510,0.23,1572.0,1571.9,22.65434922]
[1673852161826,0.9480694,1572.3,1572.1,19.08273]
[1673852162028,4.22085618,1572.3,1572.1,21.264003]
[1673852163073,0.9480694,1572.3,1572.1,21.264003]
[1673852163301,0.9480694,1572.4,1572.1,23.764003]
[1673852164183,2.37007483,1572.5,1572.2,1.449]
[1673852164442,0.9480694,1572.4,1572.3,12.8651]
[1673852164843,1.1780694,1572.4,1572.3,12.8651]
[1673852165908,0.23,1572.4,1572.3,12.8651]
[1673852169446,3.50278678,1572.4,1572.2,6.36025]
[1673852169690,0.23,1572.3,1572.2,6.36025]
[1673852170070,1.67,1572.3,1572.2,6.36025]
[1673852170719,0.23,1572.3,1572.2,6.36025]
[1673852171645,4.94278678,1572.3,1572.0,33.36933]
[1673852171904,3.27278678,1572.2,1572.0,31.92033]
[1673852172125,0.23,1572.1,1572.0,22.66093]
[1673852173151,0.23,1572.1,1572.0,19.66093]
[1673852173540,0.23,1572.1,1572.0,13.3]
[1673852173541,4.94278678,1572.1,1572.0,13.3]
[1673852173753,6.69306546,1572.1,1572.0,13.3]
[1673852175739,5.25306546,1572.1,1572.0,13.3]
[1673852175990,3.50278678,1572.1,1572.0,13.3]
[1673852177262,4.23817396,1572.1,1572.0,13.3]
[1673852177529,0.73538718,1572.1,1572.0,32.38396]
[1673852177740,0.73538718,1572.1,1572.0,36.83296]
[1673852177948,14.9480694,1572.4,1572.0,36.83296]
[1673852178218,18.22085618,1572.4,1572.2,19.08153]
[1673852179209,17.27278678,1572.4,1572.2,19.08153]
[1673852179683,0.23,1572.3,1572.2,19.08153]
[1673852181973,14.9480694,1572.6,1572.2,20.52100419]
[1673852182312,14.0,1572.6,1572.3,6.21710042]
[1673852182503,14.0,1572.6,1572.4,19.0791]
[1673852183410,14.0,1572.6,1572.4,21.5791]
[1673852183621,16.45063038,1572.8,1572.5,1.449]
[1673852183885,16.45063038,1572.8,1572.6,12.71778]
[1673852183886,18.30414662,1572.8,1572.6,12.71778]
[1673852184683,18.30414662,1572.8,1572.6,15.020366]
[1673852185243,0.95029491,1572.7,1572.6,15.020366]
[1673852185459,0.95029491,1572.7,1572.6,28.724866]
[1673852185982,1.18029491,1572.7,1572.6,28.724866]
[1673852186823,1.18029491,1572.7,1572.6,20.06339]
[1673852187042,1.18029491,1572.7,1572.6,13.7045]
[1673852187043,5.40115109,1572.7,1572.6,13.7045]
[1673852187580,4.45308169,1572.7,1572.6,13.7045]
[1673852187939,6.3443971,1572.7,1572.6,13.7045]
[1673852188573,7.76338822,1572.7,1572.6,13.7045]
[1673852188814,8.52906497,1572.7,1572.6,13.7045]
[1673852190238,9.00261212,1572.7,1572.2,6.3604]
[1673852190454,14.94599605,1572.4,1572.1,15.77676]
[1673852190675,14.0,1572.2,1572.1,20.48236]
[1673852190974,14.23,1572.2,1572.1,6.36066]
[1673852191783,17.50278678,1572.2,1572.1,6.36066]
[1673852192514,17.50278678,1572.2,1572.0,26.43902]
[1673852192832,3.50278678,1572.1,1572.0,13.7166]
[1673852193264,3.50278678,1572.1,1571.9,7.80701399]
[1673852193414,17.27278678,1572.0,1571.9,1.44554399]
[1673852193872,17.50278678,1572.0,1571.9,1.44554399]
[1673852194778,17.50278678,1572.0,1571.9,7.80726399]
[1673852195201,17.50278678,1572.0,1571.9,1.44554399]
[1673852196519,17.50278678,1572.0,1571.9,7.80726399]
[1673852197870,14.0,1572.0,1571.9,24.66219122]
[1673852201302,0.94626767,1572.2,1571.9,24.66219122]
[1673852201512,3.50278678,1572.1,1571.9,24.66219122]
[1673852201989,3.50278678,1572.1,1571.9,27.16219122]
[1673852202201,3.50278678,1572.1,1571.9,24.66219122]
[1673852202355,4.44905445,1572.1,1571.9,24.66219122]
[1673852203403,3.50278678,1572.1,1571.9,24.66219122]
[1673852203754,3.50278678,1572.1,1572.0,15.18885912]
[1673852203971,3.50278678,1572.1,1572.0,12.72264]
[1673852204666,4.44905445,1572.1,1572.0,12.72264]
[1673852205040,4.44905445,1572.1,1571.9,7.80705399]
[1673852205041,18.92239038,1572.1,1571.9,7.80705399]
[1673852205197,3.27278678,1572.0,1571.9,7.80705399]
[1673852205407,3.50278678,1572.0,1571.9,7.80705399]
[1673852207975,3.50278678,1572.0,1571.9,1.44554399]
[1673852207976,13.0348477,1572.0,1571.9,1.44554399]
[1673852208133,13.03448454,1572.0,1571.9,1.44554399]
[1673852208351,16.00839476,1572.0,1571.9,1.44554399]
[1673852208557,13.03387167,1572.0,1571.9,1.44554399]
[1673852209186,15.53387167,1572.0,1571.9,1.44554399]
[1673852210161,13.03387167,1572.0,1571.9,1.44554399]
[1673852210391,6.19934818,1572.0,1571.9,1.44554399]
[1673852211197,5.86855571,1572.0,1571.9,1.44554399]
[1673852211402,4.4490695,1572.0,1571.9,1.44554399]
[1673852211628,4.4490695,1572.0,1571.9,7.80726399]
[1673852212204,4.4490695,1572.0,1571.9,1.44554399]
[1673852212396,3.50278678,1572.0,1571.9,1.44554399]
[1673852213623,3.50278678,1572.0,1571.9,1.42554399]
[1673852215857,4.44871952,1572.0,1571.9,1.42554399]
[1673852216071,6.29359147,1572.0,1571.9,1.42554399]
[1673852216284,6.29359147,1572.0,1571.8,6.47613025]
[1673852216522,17.50278678,1571.9,1571.8,6.47613025]
[1673852216720,17.50278678,1571.9,1571.8,0.11439025]
[1673852221643,14.0,1571.9,1571.8,15.73665025]
[1673852221810,14.0,1571.9,1571.8,23.68604549]
[1673852221966,14.0,1571.9,1571.8,20.78804549]
[1673852222168,14.0,1571.9,1571.8,12.83865025]
[1673852222807,17.27278678,1571.9,1571.8,12.83865025]
[1673852225866,17.27278678,1571.9,1571.8,19.20078025]
[1673852226086,14.94593274,1572.1,1571.8,19.20078025]
[1673852226280,2.36408006,1572.2,1571.8,20.64578025]
[1673852226489,14.0,1572.1,1572.0,19.08396]
[1673852228309,14.94593274,1572.1,1572.0,19.08396]
[1673852229464,18.21871952,1572.1,1572.0,19.08396]
[1673852229674,18.6909341,1572.1,1572.0,6.36132]
[1673852229860,19.6390083,1572.1,1572.0,6.36132]
[1673852230272,18.6909341,1572.1,1572.0,6.36132]
[1673852233057,19.63949096,1572.1,1572.0,6.36132]
[1673852235333,19.63949096,1572.1,1572.0,12.72264]
[1673852235531,18.22134364,1572.1,1572.0,12.72264]
[1673852236150,18.22134364,1572.1,1572.0,19.08396]
[1673852236365,18.22134364,1572.1,1572.0,22.319706]
[1673852237570,17.27278678,1572.1,1572.0,22.319706]
[1673852237745,18.22134364,1572.1,1572.0,22.319706]
[1673852237957,14.94855686,1572.1,1572.0,22.319706]
[1673852238169,0.94855686,1572.2,1572.0,22.319706]
[1673852238381,0.94855686,1572.2,1572.1,21.3147006]
[1673852238602,14.94855686,1572.2,1572.1,21.3147006]
[1673852238831,14.94855686,1572.2,1572.1,14.9537906]
[1673852239043,16.36670418,1572.2,1572.1,12.72182]
[1673852239205,19.16424249,1572.2,1571.9,25.99641]
[1673852239419,14.0,1572.0,1571.9,25.99641]
[1673852239786,18.22142743,1572.0,1571.9,25.99308675]
[1673852241900,18.22142743,1572.0,1571.9,19.63155675]
[1673852242046,20.18586627,1572.0,1571.9,13.27017675]
[1673852242259,20.41586627,1572.0,1571.9,13.27017675]
[1673852242727,21.83882724,1572.0,1571.9,13.27017675]
[1673852243037,20.89018659,1572.0,1571.9,13.27017675]
[1673852243262,21.35868133,1572.0,1571.9,13.27017675]
[1673852244152,22.78185478,1572.0,1571.9,13.27017675]
[1673852245633,21.83937577,1572.0,1571.9,13.27017675]
[1673852246001,20.89039907,1572.0,1571.9,13.27017675]
[1673852246420,21.83929262,1572.0,1571.9,13.27017675]
[1673852246637,21.83928764,1572.0,1571.9,13.27017675]
[1673852246783,19.8748488,1572.0,1571.9,19.63189675]
[1673852247000,18.45167535,1572.0,1571.9,19.63189675]
[1673852247779,14.94888857,1572.0,1571.9,25.99361675]
[1673852247989,14.0,1572.0,1571.9,25.99361675]
[1673852248313,14.0,1572.0,1571.9,29.38510345]
[1673852248923,14.0,1572.0,1571.9,35.74682345]
[1673852251333,0.94888857,1572.1,1571.9,35.74682345]
[1673852254092,16.37206202,1572.2,1571.9,35.74682345]
[1673852254264,0.94888857,1572.1,1571.9,35.74682345]
[1673852254482,0.94888857,1572.1,1572.0,3.57468235]
[1673852254718,0.94888857,1572.1,1572.0,22.65864235]
[1673852256605,7.0848488,1572.1,1572.0,6.36132]
[1673852256906,26.31094596,1572.1,1571.8,0.11439025]
[1673852257121,29.54351242,1571.9,1571.8,0.11439025]
[1673852257307,29.54351242,1571.9,1571.7,0.1360021]
[1673852257308,2.5,1571.8,1571.7,0.1360021]
[1673852257517,2.5,1571.7,1571.6,0.13008622]
[1673852257782,29.77263005,1571.7,1571.6,0.13008622]
[1673852258140,27.87492193,1571.7,1571.6,0.13008622]